Cogmind - Beta 16 @@@ ROGUE MODE // 2026.01.04 @ 18:15:21 Player: Bloop Result: Self-destructed Performance ------------- Evolutions (1) 500 Regions Visited (2) 400 Robots Destroyed (13) 65 Value Destroyed (307) 307 Prototype IDs (0) 0 Alien Tech Used (0) 0 Bonus (0) 0 TOTAL SCORE: 1272 Bonus ------- None Cogmind --------- Core Integrity 349/400 Matter 300/300 Energy 125/125 System Corruption 0% Temperature Warm (161) Movement Walking (190) Ox1 Location -9/Materials Parts ------- > --- POWER (1) -------- Light Ion Engine > --- PROPULSION (2) --- Aluminum Leg > --- UTILITY (4) ------ Medium Storage Unit Visual Processing Unit Sensor Array Signal Interpreter > --- WEAPON (2) ------- (None) > --- INVENTORY (10) --- Light Ion Engine Heavy Ion Engine Faulty Heavy Ion Engine Small Storage Unit Medium Matter Pod (82) Structural Scanner Targeting Computer Datajack Peak State ------------ > --- POWER ------------ Light Ion Engine > --- PROPULSION ------- Hover Unit Hover Unit > --- UTILITY ---------- Small Storage Unit Structural Scanner Visual Processing Unit Signal Interpreter > --- WEAPON ----------- Medium Laser Datajack > --- INVENTORY -------- Light Ion Engine Heavy Ion Engine Heavy Ion Engine Medium Matter Pod Targeting Computer Medium Laser [Rating: 11] Favorites ----------- Power Light Ion Engine Engine Light Ion Engine Propulsion Aluminum Leg Leg Aluminum Leg Hover Unit Hover Unit Flight Unit Flight Unit Utility Small Storage Unit Device Structural Scanner Storage Small Storage Unit Processor Signal Interpreter Weapon Medium Laser Energy Gun Medium Laser Special Melee Weapon Datajack Build | -11 -10 -9 ------- Run | Yrd Mat Mat Slots Evolved 2 | . . 2 Power . | . . . Propulsion . | . . . Utility 2 | . . 2 Weapon . | . . . Parts Attached 19 | 7 7 5 Power 2 | 1 1 . Engine 2 | 1 1 . Core . | . . . Reactor . | . . . Propulsion 7 | 2 4 1 Treads . | . . . Leg 3 | 2 . 1 Wheel . | . . . Hover 3 | . 3 . Flight 1 | . 1 . Utility 6 | 1 1 4 Device 2 | . 1 1 Storage 2 | 1 . 1 Processor 2 | . . 2 Hackware . | . . . Protection . | . . . Artifact . | . . . Weapon 4 | 3 1 . Energy Gun 3 | 3 . . Energy Cannon . | . . . Ballistic Gun . | . . . Ballistic Cannon . | . . . Launcher . | . . . Special Weapon . | . . . Impact Weapon . | . . . Slashing Weapon . | . . . Piercing Weapon . | . . . Special Melee Weapon 1 | . 1 . Unidentified Prototypes . | . . . Parts Lost 4 | . . 4 Power . | . . . Propulsion 2 | . . 2 Utility . | . . . Weapon 2 | . . 2 Highest Loss Streak 2 | . . 2 To Critical Strikes . | . . . Average Backups 6 | 1 6 7 Power 2 | . 1 3 Propulsion . | . . . Utility 2 | . 2 3 Weapon 1 | . 1 . Tool/Special . | . . . Unused Backups 7 | . 2 5 Power 3 | . . 3 Propulsion . | . . . Utility 3 | . 1 2 Weapon 1 | . 1 . Tool/Special . | . . . Average Slot Usage (%) 95 | . 97 91 Engine 13 | . 14 11 Leg 16 | . 21 5 Hover 7 | . 6 9 Device 11 | . 11 11 Storage 13 | . 14 11 Processor 6 | . . 21 Energy Gun 23 | . 25 17 Special Melee Weapon 2 | . 2 3 Peak Build Rating 11 | 6 8 11 Average Rating 7 | 4 7 10 On Entrance 4 | . 6 8 Avg Prop Armor Cover (%) . | . . . Naked Turns . | . . . Heaviest Build 18 | 12 13 18 Greatest Support 20 | 20 20 12 Greatest Overweight (x) 4 | . 2 4 Average Overweight (x) . | . . . Largest Inventory Capacity 10 | 8 8 10 Average Capacity 8 | 6 8 8 Most Carried 8 | 3 8 8 Average Carried 6 | 1 6 7 Final Capacity 10 | 8 8 10 Final Carried 8 | 2 8 8 Class Distribution -------------------- 75% | Mutant 17% | Skirmisher 7% | Scout Dominant Class ---------------- Mutant | -10/Materials Skirmisher | -9/Materials Resources | -11 -10 -9 ----------- Run | Yrd Mat Mat Matter Collected 535 | 243 180 112 Remotely . | . . . Salvage Created 383 | . 180 203 Parts 29 | . 15 14 Haulers Intercepted . | . . . Recyclers Shooed . | . . . Parts Field Recycled . | . . . Retrieved Matter . | . . . Parts Self-Destructed . | . . . Prevented . | . . . Parts Restored . | . . . Kills | -11 -10 -9 ------- Run | Yrd Mat Mat Combat Hostiles Destroyed 9 | . 5 4 Guns 9 | . 5 4 Classes Destroyed 5 | . 3 2 Worker 1 | . . 1 Watcher 3 | . 2 1 Swarmer 3 | . 3 . Grunt 5 | . 2 3 Sentry 1 | . . 1 Best Kill Streak 3 | . 3 3 Combat Bots Only 3 | . 2 3 Max Kills in Single Turn 1 | . 1 1 Gunslinging . | . . . Exploded . | . . . Melee . | . . . Uniques/NPCs Destroyed . | . . . Combat | -11 -10 -9 -------- Run | Yrd Mat Mat Hostile Shots Fired 49 | . 18 31 Missed 14 | . 6 8 Hits 35 | . 12 23 Projectile 35 | . 12 23 Damage Taken 417 | . 101 316 Core 59 | . 8 51 Absorbed by Shields . | . . . Core Remaining (%) 98 | 100 96 . Volleys Fired 42 | . 15 27 Largest 2 | . 2 2 Hottest 100 | . 100 100 Shots Fired 76 | . 30 46 Gun 76 | . 30 46 Cannon . | . . . Launcher . | . . . Special . | . . . Kinetic . | . . . Thermal 76 | . 30 46 Explosive . | . . . Electromagnetic . | . . . Robot Hit Streak 11 | . 6 11 Robot Miss Streak 4 | . 4 2 Penetration Max . | . . . Secondary Targets 1 | . 1 . Max Gunslinging Chain 1 | . 1 . Shots Hit Robots 56 | . 23 33 Core Hits 22 | . 9 13 Critical Kills . | . . . Critical Parts Destroyed . | . . . Critical Strikes 1 | . 1 . Burn 1 | . 1 . Melee Attacks 9 | . 8 1 Impact . | . . . Slashing . | . . . Piercing . | . . . Sneak Attacks 9 | . 8 1 Combat Hostiles . | . . . Follow-up Attacks . | . . . Damage Inflicted 609 | . 206 403 Guns 600 | . 197 403 Cannons . | . . . Explosions . | . . . Melee . | . . . Ramming 9 | . 9 . Kinetic . | . . . Thermal 600 | . 197 403 Explosive . | . . . Electromagnetic . | . . . Impact . | . . . Slashing . | . . . Piercing . | . . . Highest Corruption . | . . . Average Corruption . | . . . Corruption Purged . | . . . Corruption Blocked . | . . . Overload Shots . | . . . Overflow Damage . | . . . Projectiles . | . . . Explosions . | . . . Melee . | . . . Knockbacks . | . . . Impact . | . . . Kinetic . | . . . Secondary . | . . . Self-Inflicted Damage . | . . . Shots . | . . . Rammed . | . . . Targets Rammed 3 | . 3 . Kicked 3 | . 3 . Crushed . | . . . Highest Temperature 417 | . 234 417 Average Temperature 124 | . 72 164 Received Heat Transfer 180 | . 12 168 Effects 2 | . . 2 Shutdowns 1 | . . 1 Matter Decay 1 | . . 1 Siege Activations . | . . . Martial Activations . | . . . Shielding Activations . | . . . Robots Disrupted . | . . . Combat Hostiles . | . . . Robots Corrupted . | . . . Combat Hostiles . | . . . Parts Fried . | . . . Impact Corruptions . | . . . Robots Melted . | . . . Combat Hostiles . | . . . Parts Melted 2 | . . 2 Heat Transferred 1850 | . 666 1184 Parts Sabotaged . | . . . Parts Stolen . | . . . Parts Stripped . | . . . Power Chain Reactions . | . . . Alert | -11 -10 -9 ------- Run | Yrd Mat Mat Maximum Alert Level . | . . . Low Security (%) 100 | 100 100 100 Level 1 . | . . . Level 2 . | . . . Level 3 . | . . . Level 4 . | . . . Level 5 . | . . . High Security . | . . . Max Security . | . . . Peak Influence 65 | . 65 50 Initial . | . . . Average 10 | . 10 12 Influence Increases 266 | . 154 112 Destroy 0b10 Robot/C 180 | . 100 80 Destroy 0b10 Robot/NC 20 | . 10 10 Destroy Leader 46 | . 24 22 Successful Hack 5 | . 5 . Lose Combat Pursuer 15 | . 15 . Influence Decreases 256 | . 154 102 Time Decay 229 | . 154 75 Lost Part 27 | . . 27 Squads Dispatched 1 | . 1 . Investigation . | . . . Extermination . | . . . Reinforcement 1 | . 1 . Assault . | . . . Garrison . | . . . Intercept . | . . . Searches Triggered . | . . . Construction Impeded . | . . . Haulers Reinforced . | . . . Active Scanning Responses . | . . . Cargo Convoy Interrupts . | . . . Stealth | -11 -10 -9 --------- Run | Yrd Mat Mat Distress Signals 1 | . . 1 Communications Jammed . | . . . Distress Signals . | . . . Times Spotted 20 | . 11 9 Peak Tracking Total 4 | . 3 4 Tactical Retreats 1 | . 1 . Traps | -11 -10 -9 ------- Run | Yrd Mat Mat Traps Triggered . | . . . Indirectly . | . . . Trap Hack Attempts . | . . . Triggered . | . . . Disarmed . | . . . Reprogrammed . | . . . Reused . | . . . Traps Extracted . | . . . Installed . | . . . Triggered . | . . . Machines | -11 -10 -9 ---------- Run | Yrd Mat Mat Machines Disabled . | . . . Max in Single Turn . | . . . Machines Repaired . | . . . Machines Dismantled . | . . . Machines Sabotaged . | . . . Overloaded Fab Kills . | . . . Hacking | -11 -10 -9 --------- Run | Yrd Mat Mat Machines Accessed 2 | . 2 . Terminals 2 | . 2 . Fabricators . | . . . Repair Stations . | . . . Recycling Units . | . . . Scanalyzers . | . . . Garrison Access . | . . . Total Hacks 4 | . 4 . Successful 2 | . 2 . Failed 2 | . 2 . Catastrophic . | . . . Database Lockouts . | . . . Manual 5 | . 5 . Terminals 4 | . 4 . Fabricators . | . . . Repair Stations . | . . . Recycling Units . | . . . Scanalyzers . | . . . Garrison Access . | . . . Terminal Hacks 2 | . 2 . Locate Traps 1 | . 1 . Zone Layout 1 | . 1 . Fabricator Hacks . | . . . Repair Station Hacks . | . . . Recycling Unit Hacks . | . . . Scanalyzer . | . . . Garrison Access Hacks . | . . . Unauthorized Hacks . | . . . Terminals . | . . . Fabricators . | . . . Repair Stations . | . . . Recycling Units . | . . . Scanalyzers . | . . . Garrison Access . | . . . Data Cores Recovered . | . . . Used . | . . . Hacking Detections 1 | . 1 . Full Trace Events . | . . . Feedback Events . | . . . Feedback Blocked . | . . . Robot Schematics Acquired . | . . . Robots Built . | . . . Authchips . | . . . Time . | . . . Total Robot Build Rating . | . . . Part Schematics Acquired . | . . . Parts Built . | . . . Authchips . | . . . Time . | . . . Total Part Build Rating . | . . . Part Studies Acquired . | . . . Parts Repaired . | . . . Time . | . . . Parts Recycled . | . . . Recycled Matter . | . . . Retrieved Matter . | . . . Retrieved Components . | . . . Parts Scanalyzed . | . . . Part Schematics Acquired . | . . . Parts Damaged . | . . . Bothacking | -11 -10 -9 ------------ Run | Yrd Mat Mat Used RIF Installer . | . . . Robots Hacked 3 | . 3 . Non-combat 3 | . 3 . Combat . | . . . Robot Hacks Applied 4 | . 4 . no_distress 3 | . 3 . find_recycling 1 | . 1 . Relay Couplers Released . | . . . Fabnet Peak Effective % . | . . . Robots Rewired . | . . . Allies Hacked . | . . . Hacks Repelled . | . . . Allies | -11 -10 -9 -------- Run | Yrd Mat Mat Total Allies . | . . . Largest Group . | . . . Highest-Rated Group . | . . . Highest-Rated Ally . | . . . Total Orders . | . . . Ally Attacks . | . . . Total Damage . | . . . Kills . | . . . Allies Corrupted . | . . . Allies Melted . | . . . Intel | -11 -10 -9 ------- Run | Yrd Mat Mat Active Infowar (turns) 968 | . 632 336 Optics 335 | . . 335 Sensors 309 | . . 309 Structural 659 | . 632 27 Robot Analysis Total . | . . . Derelict Logs Recovered . | . . . Drone Launches . | . . . Drone Recoveries . | . . . Exploration | -11 -10 -9 ------------- Run | Yrd Mat Mat Turns Passed 1166 | 72 758 336 Spaces Moved 915 | 53 609 253 Core 7 | 5 . 2 Treads . | . . . Legs 520 | 48 406 66 Wheels . | . . . Hover 388 | . 203 185 Flight . | . . . Fastest Speed 50 | 50 56 56 Average Speed 99 | 113 101 92 Slowest Speed 250 | 120 180 250 Overloaded Moves . | . . . Propulsion Burnouts . | . . . Robots Hopped . | . . . Potential Cave-ins . | . . . Cave-ins Triggered . | . . . Exploration Rate (%) 31 | 4 71 19 Regions Visited 2 Branch Regions . Pre-discovered Areas . | . . . Known Exits Taken . | . . . Unknown Exits Taken 2 | 1 1 . Scrap Searched . | . . . Spaces Dug . | . . . Terrain Destroyed . | . . . Melee . | . . . Projectile . | . . . AOE . | . . . Terrain Rammed . | . . . Walls Destroyed . | . . . Machines Disabled . | . . . Actions | -11 -10 -9 --------- Run | Yrd Mat Mat Total 1083 | 62 715 306 Wait 67 | . 49 18 Move 913 | 52 608 253 Hop . | . . . Pick Up 16 | 3 12 1 Fast Attach 9 | 5 3 1 Attach 4 | 1 1 2 Detach . | . . . Swap 12 | 1 8 3 Drop 8 | . 8 . Fire 42 | . 15 27 Melee 9 | . 8 1 Ram . | . . . Kick 3 | . 3 . Crush . | . . . Escape Stasis . | . . . Rewire . | . . . Trap . | . . . Miscellaneous . | . . . Route ------- -11/Scrapyard -10/Materials (discovered 4 exits: [*Mat x2] / [*Min] / [Sub]) -9/Materials History --------- Turn | Location | Event 5 | -11/Scrapyard | Discovered new exit (range 16) 73 | -11/Scrapyard | Entered Materials 85 | -10/Materials | Discovered new exit (range 16) 256 | -10/Materials | Discovered new exit (range 5) 315 | -10/Materials | Build established: Mutant 618 | -10/Materials | Discovered new exit (range 12) 670 | -10/Materials | Discovered new exit (range 9) 831 | -10/Materials | Entered another Materials area 831 | -9/Materials | Evolved 2 slots: Utility x2 1167 | -9/Materials | Self-destructed Last Messages --------------- 00979_ Lgt. Nuclear Core melted. 00979_ G-47 Trooper destroyed. 00984_ Hover Unit destroyed. 00990_ Power failure, Lgt. Ion Engine shutdown. 00990_ R-06 Scavenger collects Aluminum Leg. 00991_ G-34 Mercenary destroyed. 00993_ Overheating: Matter decay (-37). 00993_ R-06 Scavenger collects Lgt. Treads. 00994_ Acquired 100 matter. 00996_ K-01 Serf collects debris. 00997_ R-06 Scavenger collects Heat Sink. 00999_ Acquired Aluminum Leg. 01001_ K-01 Serf collects debris. 01061_ K-01 Serf destroyed. 01064_ Acquired 12 matter. 01136_ W-16 Scout sends out distress signal. 01140_ W-16 Scout destroyed. 01147_ Med. Laser destroyed. 01151_ G-34 Mercenary destroyed. 01165_ Med. Laser destroyed. Map ----- +----------------------------------------------------+ | ?????## # ## ##?????? | | ?????## # """ ## #??????? | | ?????## # """ ## #??????? | | ?????## # """ ## #??????? | | ?????## # ## #??????? | | ?????## # """ ## #??????? | | ?????## # """ ## #??????? | | ?????## # """ ## #??????? | | ?????## # ## #??????? | | ?????######+#### """ ## +??????? | | ?????##### + """ ## #??????? | | ????????## ### """ ## #??????? | | ????????## ### ## #??????? | | ????????## ########### #??????? | | ????????## ########### #??????# | | ????????## ########### #???? | | ????????## ########### # ? | | ????????## # """ "" | | ????????## + """ "" | | ????????## # """ "" | | ????????################ # ? | | ????????################ ######## | | ???????????#######?????# %# | | ???????????# ####### + """ | | ??????###### = g ! w#! """ | | ??????# @ [%= # """ | | ??????# #### =%! # | | ??????# #??# # * ## ######## | | ??????# #??####### ## #??????? | | ??????# #????????#! !## ??????? | | ??????# #????????##!!! ### ?????? | | ??????# #?????????######?# ????? | | ??????# #????????????????# ####???? | | ??????# #????????????????# #??????? | | ??????# #????????????????? #??????? | | ??????# #????????????????? #??????? | | ??????# ##########???????? #??????? | | ??????# #? ???????? | | ??????# #? ???????? | | ??????# "" """"" #? ???????? | | ??????# "T """"?????? ???????? | | ??????# "" """??????? ???????? | | ??????# """???????????????? | | ??????# """???????????????? | | ??????# """???????????????? | | ??????# ""????????????????? | | ??????# ????????????????? | | ??????# ????????????????? | | ??????+ ###????##???????????????? | | ??????# #???????????????????????? | +----------------------------------------------------+ Best States ------------- Heat Dissipation 28 Energy Generation 10 Energy Capacity 125 Matter Stores 300 Matter Capacity 300 Sight Range 18 Robot Scan Range 14 Terrain Scan Density 10 Evasion (%) 55 Item Schematics ----------------- None Robot Schematics ------------------ None Fabricated ------------ Nothing Repaired ---------- Nothing Studied --------- None Alien Tech Used ----------------- None Achievements -------------- None Challenges ------------ None Game ------ Seed ThrowingLaunchEngine Manual? 0 Play Time 00:13:13 Cumulative 5.2 hours Start 2026.01.04 @ 18:04:57 End 2026.01.04 @ 18:15:21 Sessions 1 Manual Loads 0 Difficulty Rogue Special Mode None Game No. 14 Rogue 14 Adventurer 0 Explorer 0 Win Type - Total 0 Types 0/0/0/0/0/0/0/0/0/0 Lore% 2 Gallery% 8 Achievement% 10 Wizard Run 0 Options --------- Layout 1 ASCII 0 Keyboard 0 Movement Arrows Keybinds 0 Fullscreen 1 Font 24/Smallcaps Map View 76x35 Zoom Use 0% Tactical HUD 1 Map Filters NONE Filters NONE Steam 1 RUN: 6b78b5fb-75b3-43f7-ba86-bb7f1c3e278e